lending/lending_fUSD_20250621
["ID","MTS","AMOUNT","RATE_DAILY","PERIOD"]
[366826514,1750481444307,-150.99,0.00029009,2]
[366826515,1750481444317,-1315.16170911,0.00029041,120]
[366826516,1750481444328,-270.94,0.00029056,2]
[366826517,1750481444338,-5714.01005,0.0002909,2]
[366826518,1750481444348,-208.17,0.000291,2]
[366826520,1750481444359,-191.0,0.00029134,7]
[366826521,1750481444370,-1011.20495744,0.00029164,5]
[366826522,1750481444381,-10671.7,0.000292,2]
[366826523,1750481444392,-836.27296323,0.00029245,20]
[366826524,1750481444403,-224.0,0.0002929,7]
[366826525,1750481444414,-3820.78,0.000293,2]
[366826526,1750481444425,-1310.86,0.000293,2]
[366826527,1750481444436,-4363.95,0.000293,2]
[366826528,1750481444448,-4235.75,0.000293,2]
[366826529,1750481444459,-327.56477272,0.00029316,2]
[366826530,1750481444470,-151.0,0.00029378,7]
[366826531,1750481444481,-370.459324,0.00029378,7]
[366826532,1750481444491,-370.459327,0.00029378,7]
[366826533,1750481444502,-151.0,0.00029378,7]
[366826534,1750481444514,-151.0,0.00029389,7]
[366826535,1750481444524,-204.0,0.00029391,14]
[366826536,1750481444535,-1008.0,0.000294,2]
[366826537,1750481444545,-2000.0,0.00029416,5]
[366826538,1750481444556,-2000.0,0.00029416,5]
[366826539,1750481444567,-2000.0,0.00029477,5]
[366826540,1750481444578,-2351.0,0.00029493,2]
[366826541,1750481444588,-29320.03,0.000295,2]
[366826542,1750481444598,-151.0,0.000295,7]
[366826543,1750481444614,-506.067724,0.000295,7]
[366826544,1750481444625,-506.067724,0.000295,7]
[366826545,1750481444636,-151.0,0.000295,7]
[366826546,1750481444648,-206.083001,0.000295,7]
[366826547,1750481444659,-206.083001,0.000295,7]
[366826548,1750481444669,-183.408709,0.000295,7]
[366826549,1750481444679,-183.408709,0.000295,7]
[366826550,1750481444690,-157.072402,0.000295,7]
[366826551,1750481444700,-157.072402,0.000295,7]
[366826552,1750481444710,-161.90536347,0.00029501,2]
[366826553,1750481444721,-151.0,0.00029527,3]
[366826554,1750481444732,-150.0,0.0002956,2]
[366826555,1750481444742,-173.28,0.00029636,2]
[366826556,1750481444753,-1165.59,0.00029636,2]
[366826557,1750481444763,-163.58,0.00029636,2]
[366826558,1750481444774,-434.72,0.00029636,2]
[366826559,1750481444785,-192.0,0.00029655,2]
[366826560,1750481444796,-3820.78,0.000297,2]
[366826561,1750481444807,-1310.86,0.000297,2]
[366826562,1750481444818,-4363.95,0.000297,2]
[366826563,1750481444831,-183.7536686,0.000297,2]
[366826564,1750481444843,-171.58297,0.000297,7]
[366826565,1750481444854,-171.58297,0.000297,7]
[366826566,1750481444864,-151.0,0.000297,7]
[366826567,1750481444874,-13690.37341023,0.000297,2]
[366826568,1750481444884,-184.14173,0.000297,7]
[366826569,1750481444894,-151.0,0.000297,7]
[366826570,1750481444905,-184.14173,0.000297,7]
[366826571,1750481444915,-6695.73,0.000297,2]
[366826572,1750481444926,-4235.75,0.000297,2]
[366826573,1750481444936,-159.08855487,0.000297,2]
[366826574,1750481444947,-167.71,0.00029727,2]
[366826575,1750481444958,-836.27296323,0.00029728,21]
[366826576,1750481444969,-460.31620352,0.00029772,15]
[366826577,1750481444979,-340.2499374,0.0002979,2]
[366826578,1750481444991,-672.91796395,0.00029799,10]
[366826579,1750481445002,-150.0,0.00029799,2]
[366826580,1750481445013,-150.0,0.00029799,2]
[366826581,1750481445023,-150.0,0.00029799,2]
[366826582,1750481445034,-1600474.06529698,0.000298,120]
[366826586,1750481445389,-1441.45016662,0.000298,120]
[366826601,1750481446259,-206.0,0.00021043,2]
[366826602,1750481446270,-753.36,0.000269,2]
[366826603,1750481512756,244.0,0.000247,120]
[366826604,1750481524464,222.0,0.00022,30]
[366826605,1750481546574,222.0,0.000201,22]
[366826606,1750481566140,222.0,0.0002,7]
[366826607,1750481631357,-272.70531882,0.00020943,2]
[366826608,1750481634268,-74.88710642,0.00020943,2]
[366826609,1750481634295,-112.95289358,0.00021043,2]
[366826611,1750481671219,151.95,0.00013699,2]
[366826612,1750481771765,212.0,0.00020043,2]
[366826613,1750481772384,-151.95,0.00020187,2]
[366826616,1750481801801,152.1516,0.00020043,2]
[366826630,1750481974096,150.0,0.00020187,2]
[366826635,1750482487705,297.8484,0.00020187,2]
[366826636,1750482488368,-166.80128817,0.00020187,2]
[366826637,1750482490939,-272.70531882,0.00020187,2]
[366826638,1750482514108,4275.56,0.000201,2]
[366826639,1750482533217,183.0,0.000247,120]
[366826640,1750482631681,-208.0,0.00021675,2]
[366826641,1750482631691,-166.84,0.00021797,2]
[366826642,1750482631733,-133.16,0.00021797,2]
[366826643,1750482631743,-150.0,0.00021918,2]
[366826644,1750482631753,-151.0,0.00022466,2]
[366826645,1750482631762,-196.50960033,0.00022672,2]
[366826646,1750482631845,-1003.49039967,0.00022672,2]
[366826647,1750482631855,-302.42,0.00022672,2]
[366826648,1750482631864,-302.96,0.00022672,2]
[366826649,1750482631874,-305.74,0.00022672,2]
[366826650,1750482631884,-246.61,0.00022672,2]
[366826651,1750482631894,-251.12,0.00022672,2]
[366826652,1750482631904,-301.37,0.00022672,2]
[366826653,1750482631914,-246.87,0.00022673,2]
[366826654,1750482631924,-254.77,0.00022673,2]
[366826655,1750482631934,-301.32,0.00022673,2]
[366826656,1750482631943,-245.23,0.00022673,2]
[366826657,1750482631953,-251.61,0.00022673,2]
[366826658,1750482631963,-300.17,0.00022673,2]
[366826659,1750482631972,-248.06,0.00022673,2]
[366826660,1750482631982,-249.09,0.00022673,2]
[366826661,1750482631992,-301.66,0.00022673,2]
[366826662,1750482632001,-252.55,0.00022673,2]
[366826664,1750482632011,-251.4,0.00022673,2]
[366826665,1750482632021,-300.0,0.00022673,2]
[366826667,1750482632031,-1055.0,0.00022673,2]
[366826669,1750482632040,-304.77,0.00022673,2]
[366826670,1750482632050,-304.72,0.00022673,2]
[366826671,1750482632060,-252.88,0.00022674,2]
[366826672,1750482632069,-303.88,0.00022674,2]
[366826673,1750482632079,-245.97,0.00022674,2]
[366826674,1750482632088,-250.79,0.00022674,2]
[366826675,1750482632098,-302.49,0.00022674,2]
[366826676,1750482632107,-246.6,0.00022674,2]
[366826677,1750482632116,-152.32,0.00022674,2]
[366826678,1750482632126,-302.16,0.00022674,2]
[366826679,1750482632135,-254.88,0.00022674,2]
[366826680,1750482632145,-249.05,0.00022674,2]
[366826681,1750482632155,-302.92,0.00022674,2]
[366826682,1750482632165,-245.66,0.00022674,2]
[366826683,1750482632174,-151.0,0.00022675,2]
[366826685,1750482632184,-245.01,0.00022675,2]
[366826687,1750482632194,-302.95,0.00022675,2]
[366826689,1750482632203,-246.02,0.00022675,2]
[366826691,1750482632213,-301.53,0.00022675,2]
[366826693,1750482632222,-249.09,0.00022675,2]
[366826696,1750482632232,-246.56,0.00022675,2]
[366826697,1750482632243,-305.58,0.00022675,2]
[366826700,1750482632254,-246.34,0.00022675,2]
[366826702,1750482632264,-252.83,0.00022675,2]
[366826703,1750482632274,-150.89,0.00022675,2]
[366826705,1750482632283,-305.65,0.00022675,2]
[366826707,1750482632296,-245.6,0.00022675,2]
[366826710,1750482632306,-253.38,0.00022675,2]
[366826711,1750482632316,-300.71,0.00022675,2]
[366826713,1750482632325,-253.79,0.00022675,2]
[366826716,1750482632335,-300.59,0.00022675,2]
[366826717,1750482632345,-252.14,0.00022675,2]
[366826719,1750482632355,-249.86,0.00022675,2]
[366826721,1750482632364,-301.82,0.00022675,2]
[366826723,1750482632374,-245.48,0.00022675,2]
[366826725,1750482632384,-151.51,0.00022675,2]
[366826728,1750482632394,-254.09,0.00022675,2]
[366826729,1750482632404,-253.33,0.00022675,2]
[366826731,1750482632414,-300.35,0.00022676,2]
[366826734,1750482632424,-246.16,0.00022676,2]
[366826736,1750482632434,-305.0,0.00022676,2]
[366826738,1750482632443,-248.16,0.00022677,2]
[366826740,1750482632453,-253.72,0.00022678,2]
[366826742,1750482632466,-304.8,0.0002268,2]
[366826744,1750482632477,-251.71,0.00022689,2]
[366826746,1750482632486,-248.79,0.00022689,2]
[366826748,1750482632497,-171.63,0.00022701,2]
[366826750,1750482632508,-300.46,0.00022702,2]
[366826752,1750482632517,-249.97,0.00022785,2]
[366826754,1750482632527,-303.76,0.00022785,2]
[366826756,1750482632539,-60.21215108,0.00022785,2]
[366826758,1750482632553,-190.93784892,0.00022785,2]
[366826760,1750482632563,-245.05,0.00022785,2]
[366826762,1750482632573,-143.99058308,0.00022785,2]
[366826802,1750482637561,-104.76941692,0.00022785,2]
[366826803,1750482637571,-301.61,0.00022785,2]
[366826804,1750482637582,-303.94,0.00022785,2]
[366826805,1750482637592,-247.24,0.00022785,2]
[366826806,1750482637602,-247.46,0.00022785,2]
[366826807,1750482637612,-300.81,0.00022785,2]
[366826808,1750482637623,-248.64,0.00022787,2]
[366826809,1750482637632,-249.58,0.00022787,2]
[366826810,1750482637642,-301.7,0.00022789,2]
[366826811,1750482637652,-247.4,0.00022812,2]
[366826812,1750482637662,-304.68,0.00022839,2]
[366826813,1750482637673,-152.0,0.00023014,2]
[366826814,1750482637683,-250.0,0.00023147,2]
[366826815,1750482637693,-600.0,0.00023147,4]
[366826816,1750482637704,-250.0,0.00023147,2]
[366826817,1750482637714,-158.10259963,0.00023223,2]
[366826818,1750482637724,-292.55991967,0.00023562,2]
[366826819,1750482637736,-158.26,0.00023602,2]
[366826820,1750482637747,-158.26,0.00023608,2]
[366826821,1750482637757,-158.26,0.00023615,2]
[366826822,1750482637767,-40.57386437,0.00023621,2]
[366826823,1750482637779,-117.68613563,0.00023621,2]
[366826824,1750482637789,-158.26,0.00023627,2]
[366826825,1750482637799,-158.26,0.00023633,2]
[366826826,1750482637810,-158.26,0.0002364,2]
[366826827,1750482637820,-158.26,0.00023646,2]
[366826828,1750482637830,-158.26,0.00023652,2]
[366826829,1750482637839,-158.26,0.00023658,2]
[366826830,1750482637850,-158.26,0.00023664,2]
[366826831,1750482637859,-158.26,0.00023671,2]
[366826832,1750482637868,-158.26,0.00023677,2]
[366826833,1750482637878,-158.26,0.00023683,2]
[366826834,1750482637888,-158.26,0.00023689,2]
[366826835,1750482637899,-158.26,0.00023696,2]
[366826836,1750482637909,-158.26,0.00023702,2]
[366826837,1750482637920,-158.26,0.00023708,2]
[366826838,1750482637930,-158.26,0.00023714,2]
[366826839,1750482637941,-158.26,0.0002372,2]
[366826840,1750482637951,-300.0,0.00023843,2]
[366826841,1750482637962,-409.14167116,0.000243,10]
[366826842,1750482638014,-140.68405671,0.000243,10]
[366826843,1750482638025,-549.82572772,0.00024417,11]
[366826844,1750482638035,-255.48479813,0.00024734,2]
[366826845,1750482638146,-1424.51520187,0.00024734,2]
[366826847,1750482638157,-197.0,0.00024835,3]
[366826849,1750482638168,-549.82572772,0.00024934,12]
[366826851,1750482638179,-300.0,0.0002494,2]
[366826852,1750482638192,-208.0,0.00025159,7]
[366826853,1750482638203,-549.82572772,0.00025452,13]
[366826854,1750482638213,-549.82572772,0.00025969,14]
[366826855,1750482638226,-993.0,0.00026027,4]
[366826856,1750482638237,-500.0,0.0002622,2]
[366826857,1750482638248,-167.4,0.00026258,2]
[366826858,1750482638258,-960.56,0.000264,2]
[366826859,1750482638268,-1000.0,0.00026426,2]
[366826860,1750482638278,-151.0,0.00026462,2]
[366826861,1750482638289,-1957.856,0.00026462,2]
[366826862,1750482638299,-481.90405363,0.00026462,2]
[366826863,1750482638309,-300.0,0.00026462,2]
[366826864,1750482638319,-314.5130546,0.00026462,2]
[366826865,1750482638329,-151.0,0.00026462,2]
[366826866,1750482638339,-207.4,0.00026462,2]
[366826867,1750482638350,-549.82572772,0.00026486,15]
[366826868,1750482638361,-2858.28,0.00026514,2]
[366826869,1750482638371,-47.07231537,0.00026517,2]
[366826871,1750482640135,-1983.22435663,0.00026517,2]
[366826872,1750482640147,-163.49766766,0.00026572,2]
[366826873,1750482640161,-1036.05,0.00026572,2]
[366826895,1750482642856,-587.84705437,0.00026572,2]
[366826896,1750482642935,-318.02292683,0.00026572,2]
[366826897,1750482642945,-190.08,0.00026582,2]
[366826898,1750482642956,-1575.86277493,0.00026627,2]
[366826899,1750482642967,-151.95,0.00026676,2]
[366826900,1750482642977,-1000.0,0.00026768,2]
[366826901,1750482642988,-834.26476573,0.000268,2]
[366826902,1750482642998,-847.1649914,0.000268,2]
[366826906,1750482646187,-1152.8350086,0.000268,2]
[366826907,1750482646197,-324.5877,0.0002689,2]
[366826908,1750482646206,-152.19,0.00026899,2]
[366826909,1750482646216,-254.93,0.00026899,2]
[366826910,1750482646226,-1304.488465,0.00026899,120]
[366826912,1750482646235,-253.02,0.00026899,2]
[366826914,1750482646245,-303.7,0.00026899,2]
[366826916,1750482646255,-254.1,0.000269,2]
[366826918,1750482646266,-13408.4328381,0.00026904,2]
[366826921,1750482646276,-158.14,0.00026973,120]
[366826923,1750482646286,-2351.0,0.00026985,2]
[366826925,1750482646295,-993.90584854,0.00027,3]
[366826926,1750482646305,-400.0,0.00027,2]
[366826928,1750482646315,-202472.19961146,0.00027,2]
[366826930,1750482646325,-549.82572772,0.00027003,16]
[366826932,1750482646335,-167.22,0.00027027,2]
[366826934,1750482646344,-304.30395882,0.00027216,2]
[366826936,1750482646354,-29304.45680105,0.00027297,2]
[366826938,1750482646364,-487.54281741,0.00027316,2]
[366826943,1750482655201,152.11,0.00013699,2]
[366826945,1750482718673,250.0,0.00015,2]
[366826946,1750483211923,210.0,0.00019675,2]
[366826947,1750483241531,202.0,0.00019675,2]
[366826948,1750483271792,201.0,0.00019675,2]
[366826949,1750483392015,200.0,0.00019675,2]
[366826955,1750483831583,152.21,0.00013699,2]
[366826963,1750483831802,-152.21,0.00020548,2]
[366826964,1750483831814,-272.70531882,0.00021899,2]
[366826965,1750483831824,-1200.0,0.00021999,2]
[366826966,1750483831834,-300.0,0.00021999,2]
[366826967,1750483831844,-17388.79287353,0.00022,6]
[366826968,1750483831854,-305.79,0.00022019,2]
[366826969,1750483831864,-210.0,0.00022036,2]
[366826970,1750483831875,-202.0,0.00022036,2]
[366826971,1750483831884,-200.0,0.00022036,2]
[366826972,1750483831895,-201.0,0.00022036,2]
[366826973,1750483831906,-248.2,0.00022535,2]
[366826974,1750483831916,-300.33,0.00022535,2]
[366826975,1750483831927,-253.61,0.00022535,2]
[366826976,1750483831937,-171.63,0.00022872,2]
[366826977,1750483831947,-600.0,0.00022936,4]
[366826978,1750483831958,-300.0,0.00023046,2]
[366826979,1750483831968,-1680.0,0.00024018,2]
[366826980,1750483831978,-890.06027429,0.000242,10]
[366826981,1750483831989,-890.06027405,0.000242,10]
[366826982,1750483831998,-890.06027405,0.000242,10]
[366826983,1750483832008,-1000.0,0.00024375,2]
[366826984,1750483832018,-187.13,0.00024452,2]
[366826985,1750483832029,-23890.0,0.00024452,2]
[366826986,1750483832040,-815.20693044,0.00024555,11]
[366826987,1750483832053,-74.85334361,0.00024555,11]
[366826988,1750483832064,-253.38,0.00024608,2]
[366826989,1750483832074,-249.84,0.00024608,2]
[366826990,1750483832084,-224.95521613,0.000249,2]
[366826991,1750483832095,-346.39,0.00024909,2]
[366826992,1750483832105,-169.13876376,0.00024934,2]
[366826993,1750483832120,-727.62602115,0.00025,10]
[366826994,1750483832136,-15608.71050185,0.00025,10]
[366827002,1750483837892,-13663.663477,0.00025,10]
[366827003,1750483837902,-30000.0,0.00025,10]
[366827004,1750483837912,-30000.0,0.00025,10]
[366827005,1750483837922,-30000.0,0.00025,10]
[366827006,1750483837933,-11122.83216764,0.00025,10]
[366827007,1750483837944,-224.95521603,0.00025163,2]
[366827008,1750483837954,-12117.85988902,0.00025252,2]
[366827009,1750483837964,-200.0,0.00025369,2]
[366827010,1750483837974,-224.95521603,0.00025426,2]
[366827011,1750483837985,-210.0,0.00025487,7]
[366827012,1750483837995,-500.0,0.000255,2]
[366827013,1750483838004,-224.95521603,0.00025689,2]
[366827014,1750483838014,-224.95521603,0.00025953,2]
[366827015,1750483838025,-12117.85988898,0.00026003,2]
[366827016,1750483838036,-501.53938039,0.00026026,2]
[366827017,1750483838047,-1000.0,0.00026048,2]
[366827018,1750483838056,-167.72,0.00026202,2]
[366827019,1750483838067,-224.95521603,0.00026216,2]
[366827020,1750483838076,-2351.0,0.00026222,2]
[366827021,1750483838086,-2000.0,0.000263,2]
[366827022,1750483838096,-522.44,0.0002634,120]
[366827023,1750483838107,-324.5877,0.00026372,2]
[366827024,1750483838119,-864.5,0.000264,2]
[366827025,1750483838129,-151.0,0.00026462,2]
[366827026,1750483838139,-1957.856,0.00026462,2]
[366827027,1750483838150,-300.0,0.00026462,2]
[366827028,1750483838159,-151.0,0.00026462,2]
[366827029,1750483838169,-300.0,0.00026462,2]
[366827031,1750483838178,-151.0,0.00026462,2]
[366827033,1750483838188,-300.0,0.00026462,2]
[366827035,1750483838197,-151.0,0.00026462,2]
[366827037,1750483838207,-300.0,0.00026462,2]
[366827039,1750483838217,-151.0,0.00026462,2]
[366827041,1750483838226,-300.0,0.00026462,2]
[366827042,1750483838236,-151.0,0.00026462,2]
[366827043,1750483838246,-300.0,0.00026462,2]
[366827044,1750483838256,-300.0,0.00026462,2]
[366827045,1750483838266,-151.0,0.00026462,2]
[366827046,1750483838276,-300.0,0.00026462,2]
[366827047,1750483838286,-151.0,0.00026462,2]
[366827048,1750483838296,-300.0,0.00026462,2]
[366827049,1750483838306,-151.0,0.00026462,2]
[366827050,1750483838316,-300.0,0.00026462,2]
[366827051,1750483838327,-151.0,0.00026462,2]
[366827052,1750483838337,-300.0,0.00026462,2]
[366827054,1750483838346,-300.0,0.00026462,2]
[366827056,1750483838356,-151.0,0.00026462,2]
[366827058,1750483838366,-300.0,0.00026462,2]
[366827060,1750483838377,-151.0,0.00026462,2]
[366827062,1750483838387,-300.0,0.00026462,2]
[366827064,1750483838397,-151.0,0.00026462,2]
[366827067,1750483838406,-300.0,0.00026462,2]
[366827069,1750483838416,-151.0,0.00026462,2]
[366827071,1750483838426,-151.0,0.00026462,2]
[366827073,1750483838436,-207.4,0.00026462,2]
[366827075,1750483838446,-151.0,0.00026462,2]
[366827077,1750483838456,-151.0,0.00026462,2]
[366827079,1750483838465,-151.0,0.00026462,2]
[366827081,1750483838475,-151.0,0.00026462,2]
[366827082,1750483838485,-185.05381519,0.00026462,2]
[366827084,1750483838494,-668.65185757,0.00026462,2]
[366827087,1750483838504,-224.95521603,0.00026479,2]
[366827089,1750483838514,-2030.296672,0.00026517,2]
[366827091,1750483838524,-252.26,0.00026572,2]
[366827092,1750483838534,-300.13,0.00026572,2]
[366827094,1750483838544,-252.0,0.00026572,2]
[366827095,1750483838553,-302.62,0.00026572,2]
[366827096,1750483838563,-251.28,0.00026572,2]
[366827097,1750483838573,-2105.41764886,0.00026572,2]
[366827098,1750483838583,-1500.0,0.00026596,2]
[366827099,1750483838593,-502.0,0.00026603,2]
[366827100,1750483838603,-2183.31810187,0.00026627,2]
[366827101,1750483838613,-226.64,0.00026627,2]
[366827102,1750483838623,-2264.10087164,0.00026682,2]
[366827103,1750483838633,-1840.34220457,0.00026737,2]
[366827104,1750483838643,-12117.85988898,0.00026754,2]
[366827105,1750483838653,-834.26476573,0.00026868,2]
[366827106,1750483838663,-2067.0,0.00027,10]
[366827107,1750483838673,-400.0,0.00027,2]
[366827108,1750483838684,-1511.20495744,0.00027144,2]
[366827109,1750483838694,-350.0,0.00027289,2]
[366827110,1750483838704,-359.79616984,0.00027298,2]
[366827111,1750483838714,-536.6983989,0.00027316,3]
[366827112,1750483838724,-151.0,0.00027316,3]
[366827113,1750483838734,-151.0,0.00027316,3]
[366827114,1750483838744,-151.0,0.00027316,3]
[366827115,1750483838753,-151.0,0.00027316,3]
[366827116,1750483838763,-151.0,0.00027316,3]
[366827117,1750483838773,-151.0,0.00027316,3]
[366827118,1750483838782,-154.0,0.00027316,3]
[366827119,1750483838792,-156.08079944,0.00027316,3]
[366827120,1750483838802,-151.0,0.00027316,3]
[366827121,1750483838811,-151.0,0.00027316,3]
[366827122,1750483838821,-151.0,0.00027316,3]
[366827123,1750483838831,-151.0,0.00027316,3]
[366827124,1750483838841,-151.0,0.00027316,3]
[366827125,1750483838850,-151.0,0.00027316,3]
[366827126,1750483838860,-151.0,0.00027316,3]
[366827127,1750483838870,-151.0,0.00027316,3]
[366827128,1750483838880,-151.0,0.00027316,3]
[366827129,1750483838890,-151.0,0.00027316,3]
[366827130,1750483838900,-151.0,0.00027316,3]
[366827131,1750483838910,-151.0,0.00027316,3]
[366827132,1750483838919,-151.0,0.00027316,3]
[366827133,1750483838929,-151.0,0.00027316,3]
[366827134,1750483838939,-166.0,0.00027316,3]
[366827135,1750483838949,-151.0,0.00027316,3]
[366827136,1750483838959,-166.0,0.00027316,3]
[366827137,1750483838968,-151.0,0.00027316,3]
[366827138,1750483838978,-166.0,0.00027316,3]
[366827139,1750483838988,-151.0,0.00027316,3]
[366827140,1750483838998,-172.0,0.00027316,3]
[366827141,1750483839007,-251.0803537,0.00027316,3]
[366827142,1750483839016,-5190.33835,0.00027316,2]
[366827143,1750483839026,-421.71004057,0.00027345,2]
[366827144,1750483839036,-150.0,0.00027397,2]
[366827145,1750483839047,-6393.31,0.00027397,2]
[366827146,1750483839057,-300.0,0.00027397,2]
[366827147,1750483839068,-206.21907853,0.00027397,2]
[366827148,1750483839078,-152.21,0.00027397,2]
[366827149,1750483839088,-1200.0,0.000274,2]
[366827150,1750483839099,-527.24700545,0.000274,2]
[366827151,1750483839110,-1000.0,0.00027422,2]
[366827152,1750483839122,-12117.85988898,0.00027505,2]
[366827153,1750483839132,-150.0,0.00027564,2]
[366827154,1750483839142,-1584.0,0.00027605,5]
[366827155,1750483839153,-500.0,0.000277,30]
[366827156,1750483839162,-340.98744937,0.000277,30]
[366827157,1750483839173,-162.7666287,0.000277,30]
[366827158,1750483839184,-500.0,0.000277,30]
[366827159,1750483839195,-500.0,0.000277,30]
[366827160,1750483839205,-266.01518762,0.00027789,2]
[366827161,1750483839215,-278.95556044,0.00027789,2]
[366827162,1750483839226,-500.0,0.00027789,2]
[366827163,1750483839236,-500.0,0.00027789,2]
[366827164,1750483839246,-500.0,0.00027789,2]
[366827165,1750483839256,-500.0,0.00027789,2]
[366827166,1750483839266,-511.84515124,0.00027789,2]
[366827167,1750483839276,-500.0,0.00027789,2]
[366827168,1750483839286,-500.0,0.00027789,2]
[366827169,1750483839296,-196.20183674,0.00027789,2]
[366827170,1750483839306,-500.0,0.00027789,2]
[366827171,1750483839316,-500.0,0.00027789,2]
[366827172,1750483839327,-500.0,0.00027789,2]
[366827173,1750483839336,-500.0,0.00027789,2]
[366827174,1750483839348,-500.0,0.00027789,2]
[366827175,1750483839358,-500.0,0.00027789,2]
[366827176,1750483839368,-500.0,0.00027789,2]
[366827177,1750483839378,-500.0,0.00027789,2]
[366827178,1750483839388,-500.0,0.00027789,2]
[366827179,1750483839398,-500.0,0.00027789,2]
[366827180,1750483839408,-500.0,0.00027789,2]
[366827181,1750483839418,-500.0,0.00027789,2]
[366827182,1750483839430,-1900.77,0.00027789,17]
[366827183,1750483839440,-179.82612274,0.00027789,17]
[366827184,1750483839450,-6408.66463597,0.0002779,5]
[366827185,1750483839460,-725560.96790367,0.0002779,5]
[366827186,1750483839471,-432.02194038,0.0002779,2]
[366827187,1750483839481,-29304.45680105,0.0002779,2]
[366827188,1750483839556,-800.0,0.000278,10]
[366827189,1750483839566,-156.587,0.00027831,2]
[366827190,1750483839576,-215.0738,0.00027831,2]
[366827191,1750483839586,-500.0,0.00027873,5]
[366827192,1750483839596,-151.32,0.00027879,2]
[366827193,1750483839606,-151.32,0.00027879,2]
[366827194,1750483839616,-151.32,0.0002788,2]
[366827195,1750483839625,-151.32,0.0002788,2]
[366827196,1750483839635,-151.32,0.0002788,2]
[366827197,1750483839645,-1496000.0,0.0002788,4]
[366827198,1750483839655,-3073.16516845,0.00027889,3]
[366827199,1750483839665,-129072.937075,0.0002789,3]
[366827200,1750483839675,-212655.422053,0.0002789,3]
[366827201,1750483839685,-814.87527914,0.00027897,2]
[366827202,1750483839695,-1700.0,0.000279,10]
[366827203,1750483839705,-834.26476573,0.0002799,3]
[366827205,1750483839714,-151.32,0.0002799,2]
[366827206,1750483839723,-278.94,0.00028,2]
[366827207,1750483839733,-12418.27,0.00028,2]
[366827208,1750483839743,-12856.87801818,0.00028,2]
[366827209,1750483839753,-257.13756037,0.00028,2]
[366827210,1750483839762,-1422.35436999,0.00028,14]
[366827212,1750483839773,-45702.43488247,0.00028,2]
[366827213,1750483839783,-6891.44167465,0.00028,60]
[366827214,1750483839793,-237.07,0.00028007,2]
[366827215,1750483839802,-161.83290944,0.0002801,2]
[366827216,1750483839813,-150.0,0.00028104,2]
[366827217,1750483839823,-150.0,0.00028104,2]
[366827218,1750483839833,-2004.0,0.0002811,2]
[366827219,1750483839842,-559.0,0.0002811,2]
[366827220,1750483839852,-1085.907,0.0002811,2]
[366827221,1750483839862,-928.0,0.0002811,2]
[366827222,1750483839872,-591.0,0.0002811,2]
[366827223,1750483839883,-1402.418,0.0002811,2]
[366827224,1750483839893,-1161.0,0.0002811,2]
[366827225,1750483839903,-946.0,0.0002811,2]
[366827226,1750483839913,-4095.0,0.0002811,2]
[366827227,1750483839923,-3333.0,0.0002811,2]
[366827228,1750483839933,-4813.409,0.0002811,2]